[Event "Early-Titled-Tuesday-Blitz-October-10-2023"]
[Site "Chess.com"]
[Date "2023.10.10"]
[Round "5"]
[White "Masterbeaterr"]
[Black "meoluoi91"]
[Result "1/2-1/2"]
[WhiteElo "2475"]
[BlackElo "2604"]
[TimeControl "180+1"]
[EndTime "8:55:27 PDT"]
[Termination "Game drawn by repetition"]

1. d4 {[%clk 0:02:56.1]} 1... d5 {[%clk 0:02:57.8]} 2. c4 {[%clk 0:02:55.6]}
2... c6 {[%clk 0:02:58]} 3. Nc3 {[%clk 0:02:54.5]} 3... Nf6 {[%clk 0:02:57.6]}
4. e3 {[%clk 0:02:53.2]} 4... g6 {[%clk 0:02:57]} 5. Nf3 {[%clk 0:02:52.4]} 5...
Bg7 {[%clk 0:02:57.5]} 6. Be2 {[%clk 0:02:52.1]} 6... O-O {[%clk 0:02:57.8]} 7.
O-O {[%clk 0:02:51.8]} 7... Be6 {[%clk 0:02:54.2]} 8. b3 {[%clk 0:02:43.5]} 8...
Ne4 {[%clk 0:02:43.4]} 9. Nxe4 {[%clk 0:02:41.2]} 9... dxe4 {[%clk 0:02:42.4]}
10. Ng5 {[%clk 0:02:37.7]} 10... Bf5 {[%clk 0:02:42.1]} 11. Bg4 {[%clk
0:02:27.8]} 11... e6 {[%clk 0:02:30.4]} 12. Bxf5 {[%clk 0:02:27.2]} 12... exf5
{[%clk 0:02:27.8]} 13. Nh3 {[%clk 0:02:27.8]} 13... c5 {[%clk 0:02:24.9]} 14.
Bb2 {[%clk 0:02:27.2]} 14... Nc6 {[%clk 0:02:24.8]} 15. Ba3 {[%clk 0:02:18.9]}
15... cxd4 {[%clk 0:02:12.4]} 16. Bxf8 {[%clk 0:02:17.3]} 16... Qxf8 {[%clk
0:02:13]} 17. exd4 {[%clk 0:02:15.5]} 17... Bxd4 {[%clk 0:02:12.2]} 18. Rc1
{[%clk 0:02:14.4]} 18... Be5 {[%clk 0:02:02.2]} 19. Rc2 {[%clk 0:02:03.7]} 19...
a5 {[%clk 0:01:51.8]} 20. Rd2 {[%clk 0:02:03.3]} 20... a4 {[%clk 0:01:51.9]} 21.
Rd5 {[%clk 0:01:59.1]} 21... axb3 {[%clk 0:01:47.7]} 22. axb3 {[%clk 0:01:59.6]}
22... Qb4 {[%clk 0:01:41]} 23. Qc2 {[%clk 0:01:44.5]} 23... Nd4 {[%clk
0:01:24.7]} 24. Qd1 {[%clk 0:01:39.2]} 24... Nc6 {[%clk 0:01:19]} 25. Qc2 {[%clk
0:01:37.1]} 25... Ra3 {[%clk 0:01:14.8]} 26. Rb1 {[%clk 0:01:27.5]} 26... Qe7
{[%clk 0:00:48.6]} 27. Qd2 {[%clk 0:01:18.9]} 27... Qc7 {[%clk 0:00:40.8]} 28.
g3 {[%clk 0:01:17.3]} 28... Qb6 {[%clk 0:00:38.5]} 29. Rd7 {[%clk 0:01:10]}
29... Nd4 {[%clk 0:00:33.2]} 30. Kg2 {[%clk 0:00:57.7]} 30... e3 {[%clk
0:00:32.3]} 31. fxe3 {[%clk 0:00:56]} 31... Qc6+ {[%clk 0:00:28]} 32. Rd5 {[%clk
0:00:55.6]} 32... Nxb3 {[%clk 0:00:25]} 33. Qb4 {[%clk 0:00:47.6]} 33... Ra2+
{[%clk 0:00:23.6]} 34. Kg1 {[%clk 0:00:48]} 34... Nd2 {[%clk 0:00:21.8]} 35.
Rxd2 {[%clk 0:00:44.1]} 35... Rxd2 {[%clk 0:00:15.4]} 36. Qxd2 {[%clk
0:00:44.3]} 36... Qxc4 {[%clk 0:00:15.5]} 37. Rxb7 {[%clk 0:00:39.5]} 37... Qe4
{[%clk 0:00:12.4]} 38. Rb4 {[%clk 0:00:34]} 38... Qf3 {[%clk 0:00:09.3]} 39. Nf4
{[%clk 0:00:29.9]} 39... h5 {[%clk 0:00:09.4]} 40. Rb5 {[%clk 0:00:24.6]} 40...
Bf6 {[%clk 0:00:08.3]} 41. Rb6 {[%clk 0:00:20.5]} 41... Bg5 {[%clk 0:00:08.4]}
42. Qf2 {[%clk 0:00:14.4]} 42... Qe4 {[%clk 0:00:08]} 43. Rb2 {[%clk 0:00:12.6]}
43... h4 {[%clk 0:00:07.3]} 44. Rd2 {[%clk 0:00:11.9]} 44... hxg3 {[%clk
0:00:06.9]} 45. hxg3 {[%clk 0:00:12.7]} 45... Bf6 {[%clk 0:00:06.9]} 46. Re2
{[%clk 0:00:08.8]} 46... Qb1+ {[%clk 0:00:05.9]} 47. Kg2 {[%clk 0:00:08.7]}
47... Qe4+ {[%clk 0:00:06.1]} 48. Qf3 {[%clk 0:00:09.3]} 48... Qc4 {[%clk
0:00:06.6]} 49. g4 {[%clk 0:00:09]} 49... fxg4 {[%clk 0:00:06.3]} 50. Qxg4
{[%clk 0:00:08.6]} 50... Qe4+ {[%clk 0:00:06]} 51. Qf3 {[%clk 0:00:08.7]} 51...
Qf5 {[%clk 0:00:06.1]} 52. Rd2 {[%clk 0:00:07.6]} 52... Qg5+ {[%clk 0:00:06.1]}
53. Qg3 {[%clk 0:00:07.3]} 53... Qf5 {[%clk 0:00:06.4]} 54. Rd5 {[%clk
0:00:06.4]} 54... Qe4+ {[%clk 0:00:06.4]} 55. Kh3 {[%clk 0:00:06.4]} 55... Qh1+
{[%clk 0:00:05.4]} 56. Qh2 {[%clk 0:00:06]} 56... Qf3+ {[%clk 0:00:05.3]} 57.
Qg3 {[%clk 0:00:06.5]} 57... Qh1+ {[%clk 0:00:05.4]} 58. Qh2 {[%clk 0:00:06.9]}
58... Qf3+ {[%clk 0:00:06]} 59. Qg3 {[%clk 0:00:07.1]} 59... Qh1+ {[%clk
0:00:06.6]} 1/2-1/2

[Event "Early-Titled-Tuesday-Blitz-October-10-2023"]
[Site "Chess.com"]
[Date "2023.10.10"]
[Round "5"]
[White "Smiechu"]
[Black "play1ngtheangel"]
[Result "0-1"]
[WhiteElo "2487"]
[BlackElo "2651"]
[TimeControl "180+1"]
[EndTime "8:55:30 PDT"]
[Termination "play1ngtheangel won by resignation"]

1. e4 {[%clk 0:03:00.9]} 1... c5 {[%clk 0:02:59.9]} 2. Nf3 {[%clk 0:03:01.1]}
2... Nc6 {[%clk 0:02:59.5]} 3. d4 {[%clk 0:03:01.7]} 3... cxd4 {[%clk 0:03:00]}
4. Nxd4 {[%clk 0:03:02.4]} 4... Nf6 {[%clk 0:03:00.7]} 5. Nc3 {[%clk 0:03:02.6]}
5... e5 {[%clk 0:03:01.3]} 6. Ndb5 {[%clk 0:03:02.2]} 6... d6 {[%clk 0:03:01.7]}
7. Nd5 {[%clk 0:03:02.4]} 7... Nxd5 {[%clk 0:03:01.9]} 8. exd5 {[%clk
0:03:03.1]} 8... Nb8 {[%clk 0:03:02.6]} 9. a4 {[%clk 0:03:02.8]} 9... Be7 {[%clk
0:03:01.9]} 10. Be2 {[%clk 0:03:03]} 10... Nd7 {[%clk 0:03:02.3]} 11. O-O {[%clk
0:03:02.1]} 11... O-O {[%clk 0:03:02]} 12. Be3 {[%clk 0:02:59.7]} 12... a6
{[%clk 0:03:02.4]} 13. Na3 {[%clk 0:02:59.8]} 13... f5 {[%clk 0:03:02.7]} 14. f4
{[%clk 0:03:00]} 14... g5 {[%clk 0:02:57.5]} 15. fxe5 {[%clk 0:02:16.2]} 15...
Nxe5 {[%clk 0:02:56.2]} 16. Nc4 {[%clk 0:02:12.8]} 16... f4 {[%clk 0:02:53.8]}
17. Nxe5 {[%clk 0:02:01]} 17... dxe5 {[%clk 0:02:54.7]} 18. Bf2 {[%clk
0:01:53.5]} 18... Bf5 {[%clk 0:02:53.4]} 19. c4 {[%clk 0:01:37.8]} 19... Rc8
{[%clk 0:02:52.7]} 20. Rc1 {[%clk 0:01:30.6]} 20... e4 {[%clk 0:02:43.1]} 21.
Bd4 {[%clk 0:01:22.9]} 21... b6 {[%clk 0:02:32.7]} 22. a5 {[%clk 0:01:19.4]}
22... bxa5 {[%clk 0:02:22.8]} 23. c5 {[%clk 0:01:19.4]} 23... g4 {[%clk
0:02:21.3]} 24. d6 {[%clk 0:01:17.7]} 24... Bf6 {[%clk 0:02:18.3]} 25. Bxa6
{[%clk 0:01:13.2]} 25... Ra8 {[%clk 0:02:04.2]} 26. Bc4+ {[%clk 0:01:12.6]}
26... Kg7 {[%clk 0:02:03.6]} 27. Rxf4 {[%clk 0:01:12.1]} 27... Kh6 {[%clk
0:01:29.1]} 28. Rxf5 {[%clk 0:00:50]} 28... Bxd4+ {[%clk 0:01:27.6]} 29. Qxd4
{[%clk 0:00:50.1]} 29... Rxf5 {[%clk 0:01:27.8]} 30. Qxe4 {[%clk 0:00:48.7]}
30... Rxc5 {[%clk 0:01:21.6]} 31. Qd4 {[%clk 0:00:27.8]} 31... Qg5 {[%clk
0:01:03.5]} 32. Rf1 {[%clk 0:00:22.7]} 32... Re5 {[%clk 0:01:03]} 33. d7 {[%clk
0:00:18]} 33... Qe3+ {[%clk 0:00:57.2]} 34. Qxe3+ {[%clk 0:00:18.1]} 34... Rxe3
{[%clk 0:00:58.1]} 35. Ba6 {[%clk 0:00:17.5]} 35... Rd8 {[%clk 0:00:52.2]} 36.
Bc8 {[%clk 0:00:17.4]} 36... a4 {[%clk 0:00:52.2]} 37. Ra1 {[%clk 0:00:16.9]}
37... Re4 {[%clk 0:00:51.4]} 38. Kf2 {[%clk 0:00:16.2]} 38... Rb4 {[%clk
0:00:52]} 39. Ra2 {[%clk 0:00:15.7]} 39... Kg5 {[%clk 0:00:52]} 40. Kg3 {[%clk
0:00:16]} 40... h5 {[%clk 0:00:52.3]} 41. h4+ {[%clk 0:00:15.4]} 41... gxh3
{[%clk 0:00:52.2]} 42. gxh3 {[%clk 0:00:15.6]} 42... h4+ {[%clk 0:00:43]} 43.
Kf3 {[%clk 0:00:15.7]} 43... Rb3+ {[%clk 0:00:43.1]} 44. Ke4 {[%clk 0:00:15.5]}
44... Rxh3 {[%clk 0:00:42.4]} 45. Rxa4 {[%clk 0:00:15.4]} 45... Rh2 {[%clk
0:00:42.8]} 46. Ke5 {[%clk 0:00:14.9]} 46... Re2+ {[%clk 0:00:42.4]} 47. Kd6
{[%clk 0:00:15.1]} 47... h3 {[%clk 0:00:38.1]} 48. Kc7 {[%clk 0:00:14.4]} 48...
h2 {[%clk 0:00:37.1]} 49. Ra1 {[%clk 0:00:13.5]} 49... Rh8 {[%clk 0:00:36.9]}
50. d8=Q+ {[%clk 0:00:10.9]} 50... Rxd8 {[%clk 0:00:35.5]} 51. Kxd8 {[%clk
0:00:11.1]} 51... Rxb2 {[%clk 0:00:36.2]} 52. Bd7 {[%clk 0:00:10.8]} 52... Kf4
{[%clk 0:00:25.3]} 53. Ke7 {[%clk 0:00:10.6]} 53... Rg2 {[%clk 0:00:24.9]} 54.
Bc6 {[%clk 0:00:10.3]} 54... Rg1 {[%clk 0:00:25.4]} 55. Ra4+ {[%clk 0:00:09.8]}
55... Kg3 {[%clk 0:00:25.4]} 56. Ra8 {[%clk 0:00:07.6]} 56... Rb1 {[%clk
0:00:24.7]} 57. Rg8+ {[%clk 0:00:07.5]} 57... Kf4 {[%clk 0:00:24.9]} 58. Rh8
{[%clk 0:00:04.7]} 58... Rb2 {[%clk 0:00:25.4]} 59. Kd6 {[%clk 0:00:04.7]} 59...
Kg3 {[%clk 0:00:23.5]} 60. Bd5 {[%clk 0:00:05]} 60... Rd2 {[%clk 0:00:23]} 61.
Ke5 {[%clk 0:00:05.3]} 61... Rd1 {[%clk 0:00:20.9]} 62. Be4 {[%clk 0:00:04.9]}
62... Rd2 {[%clk 0:00:19.4]} 63. Kf5 {[%clk 0:00:05.1]} 63... Ra2 {[%clk
0:00:18.8]} 64. Rg8+ {[%clk 0:00:05.4]} 64... Kh3 {[%clk 0:00:15.9]} 65. Kf4
{[%clk 0:00:04.4]} 65... Rf2+ {[%clk 0:00:16.2]} 66. Bf3 {[%clk 0:00:03.9]}
66... Rxf3+ {[%clk 0:00:15.3]} 67. Ke4 {[%clk 0:00:02.5]} 67... Rg3 {[%clk
0:00:14.7]} 68. Rh8+ {[%clk 0:00:02.7]} 68... Kg2 {[%clk 0:00:15.1]} 69. Kf4
{[%clk 0:00:02.3]} 69... Rh3 {[%clk 0:00:15.7]} 70. Rg8+ {[%clk 0:00:02.2]}
70... Kf2 {[%clk 0:00:16.2]} 71. Ra8 {[%clk 0:00:02]} 71... h1=Q {[%clk
0:00:16.8]} 72. Ra2+ {[%clk 0:00:02.6]} 72... Ke1 {[%clk 0:00:17.5]} 73. Ra1+
{[%clk 0:00:02.9]} 73... Kd2 {[%clk 0:00:18.1]} 0-1

[Event "Early-Titled-Tuesday-Blitz-October-10-2023"]
[Site "Chess.com"]
[Date "2023.10.10"]
[Round "5"]
[White "Cambek64"]
[Black "erugee"]
[Result "1-0"]
[WhiteElo "2429"]
[BlackElo "2253"]
[TimeControl "180+1"]
[EndTime "8:55:39 PDT"]
[Termination "Cambek64 won on time"]

1. b3 {[%clk 0:02:59]} 1... e5 {[%clk 0:02:53.6]} 2. Bb2 {[%clk 0:02:59.2]} 2...
d6 {[%clk 0:02:53.8]} 3. e3 {[%clk 0:02:59.7]} 3... f5 {[%clk 0:02:53.9]} 4. d4
{[%clk 0:02:59.3]} 4... Nc6 {[%clk 0:02:52.5]} 5. Nf3 {[%clk 0:02:53.8]} 5... e4
{[%clk 0:02:51.3]} 6. Ng1 {[%clk 0:02:53.1]} 6... Nf6 {[%clk 0:02:51.7]} 7. h4
{[%clk 0:02:52]} 7... Be7 {[%clk 0:02:48.9]} 8. c4 {[%clk 0:02:51.8]} 8... O-O
{[%clk 0:02:45]} 9. Nh3 {[%clk 0:02:50.4]} 9... Qe8 {[%clk 0:02:23.5]} 10. Nf4
{[%clk 0:02:49.1]} 10... Nd8 {[%clk 0:02:24.1]} 11. Nc3 {[%clk 0:02:47.7]} 11...
c6 {[%clk 0:02:23]} 12. d5 {[%clk 0:02:45.2]} 12... c5 {[%clk 0:02:20]} 13. Be2
{[%clk 0:02:43.6]} 13... a6 {[%clk 0:01:59.9]} 14. Qd2 {[%clk 0:02:43.7]} 14...
Qf7 {[%clk 0:01:59.5]} 15. O-O-O {[%clk 0:02:42.7]} 15... Nd7 {[%clk 0:01:55.7]}
16. f3 {[%clk 0:02:33.7]} 16... exf3 {[%clk 0:01:53.9]} 17. gxf3 {[%clk
0:02:34.2]} 17... Bf6 {[%clk 0:01:54.2]} 18. Rdg1 {[%clk 0:02:32.3]} 18... Re8
{[%clk 0:01:53.4]} 19. Ne6 {[%clk 0:02:30.4]} 19... Nxe6 {[%clk 0:01:38.7]} 20.
dxe6 {[%clk 0:02:30.8]} 20... Qxe6 {[%clk 0:01:37]} 21. Nd5 {[%clk 0:02:30.2]}
21... Bxb2+ {[%clk 0:01:32.5]} 22. Qxb2 {[%clk 0:02:30.4]} 22... Qe5 {[%clk
0:01:27]} 23. Nc7 {[%clk 0:02:08.7]} 23... Qxb2+ {[%clk 0:01:19.3]} 24. Kxb2
{[%clk 0:02:08.9]} 24... Rxe3 {[%clk 0:01:19.7]} 25. Nxa8 {[%clk 0:02:07.9]}
25... Rxe2+ {[%clk 0:01:19.3]} 26. Kc3 {[%clk 0:02:08.3]} 26... Ne5 {[%clk
0:01:11.6]} 27. Rd1 {[%clk 0:02:03.3]} 27... Re3+ {[%clk 0:01:00.5]} 28. Kc2
{[%clk 0:01:58.3]} 28... f4 {[%clk 0:00:59.1]} 29. Rxd6 {[%clk 0:01:57.3]} 29...
Bf5+ {[%clk 0:00:59.3]} 30. Kd1 {[%clk 0:01:55.5]} 30... Nxf3 {[%clk 0:00:57.8]}
31. Nc7 {[%clk 0:01:51.5]} 31... Nd4 {[%clk 0:00:55.1]} 32. Rf1 {[%clk
0:01:17.5]} 32... Rd3+ {[%clk 0:00:54]} 33. Ke1 {[%clk 0:01:08.8]} 33... Nc2+
{[%clk 0:00:52]} 34. Ke2 {[%clk 0:01:08.6]} 34... Rxd6 {[%clk 0:00:52.5]} 35.
Rxf4 {[%clk 0:01:09]} 35... g6 {[%clk 0:00:51]} 36. Nd5 {[%clk 0:01:08.8]} 36...
Kg7 {[%clk 0:00:48.4]} 37. a4 {[%clk 0:00:59.5]} 37... Nd4+ {[%clk 0:00:45.8]}
38. Kd2 {[%clk 0:00:58.2]} 38... Nxb3+ {[%clk 0:00:46.2]} 39. Kc3 {[%clk
0:00:58.9]} 39... Nd4 {[%clk 0:00:46.2]} 40. Rf2 {[%clk 0:00:59.2]} 40... Re6
{[%clk 0:00:44.4]} 41. Rb2 {[%clk 0:00:56.7]} 41... b6 {[%clk 0:00:34.3]} 42.
Nxb6 {[%clk 0:00:55.6]} 42... Re3+ {[%clk 0:00:33.6]} 43. Kd2 {[%clk 0:00:54.7]}
43... Re2+ {[%clk 0:00:34.1]} 44. Kc3 {[%clk 0:00:54.6]} 44... Rxb2 {[%clk
0:00:29.3]} 45. Kxb2 {[%clk 0:00:55.5]} 45... Nf3 {[%clk 0:00:26.6]} 46. a5
{[%clk 0:00:53.1]} 46... Nxh4 {[%clk 0:00:27.1]} 47. Na4 {[%clk 0:00:53.1]}
47... Be6 {[%clk 0:00:25.6]} 48. Kc3 {[%clk 0:00:52.1]} 48... g5 {[%clk
0:00:21.8]} 49. Nxc5 {[%clk 0:00:52.6]} 49... Bc8 {[%clk 0:00:19.9]} 50. Kd4
{[%clk 0:00:53.3]} 50... g4 {[%clk 0:00:20.2]} 51. Ne4 {[%clk 0:00:49.5]} 51...
h5 {[%clk 0:00:18.7]} 52. Ke5 {[%clk 0:00:47.4]} 52... Kg6 {[%clk 0:00:17.2]}
53. c5 {[%clk 0:00:42.1]} 53... Nf3+ {[%clk 0:00:17.7]} 54. Kf4 {[%clk
0:00:41.5]} 54... Bb7 {[%clk 0:00:16.4]} 55. Nd6 {[%clk 0:00:40.9]} 55... Bc6
{[%clk 0:00:16.3]} 56. Nf5 {[%clk 0:00:33.7]} 56... Kf6 {[%clk 0:00:13.9]} 57.
Nh6 {[%clk 0:00:21.5]} 57... Nd2 {[%clk 0:00:13.6]} 58. Kg3 {[%clk 0:00:13.3]}
58... Ne4+ {[%clk 0:00:12]} 59. Kh4 {[%clk 0:00:13.5]} 59... Kg6 {[%clk
0:00:12.6]} 60. Ng8 {[%clk 0:00:12.9]} 60... Kf7 {[%clk 0:00:09.4]} 61. Nh6+
{[%clk 0:00:12.7]} 61... Kg6 {[%clk 0:00:04.7]} 62. Ng8 {[%clk 0:00:12.2]} 62...
Nxc5 {[%clk 0:00:04.2]} 63. Ne7+ {[%clk 0:00:11.1]} 63... Kf6 {[%clk 0:00:04.9]}
64. Nxc6 {[%clk 0:00:11.1]} 64... Ne4 {[%clk 0:00:01.6]} 65. Kxh5 {[%clk
0:00:10.3]} 65... g3 {[%clk 0:00:01.7]} 66. Nd4 {[%clk 0:00:10.4]} 66... g2
{[%clk 0:00:02.3]} 67. Ne2 {[%clk 0:00:10.1]} 67... Ke5 {[%clk 0:00:02.2]} 68.
Kg4 {[%clk 0:00:10.6]} 68... Kd5 {[%clk 0:00:01.7]} 69. Kf3 {[%clk 0:00:10.8]}
69... Nc3 {[%clk 0:00:01.2]} 70. Kxg2 {[%clk 0:00:11.1]} 1-0

[Event "Early-Titled-Tuesday-Blitz-October-10-2023"]
[Site "Chess.com"]
[Date "2023.10.10"]
[Round "5"]
[White "Msb2"]
[Black "BigAl"]
[Result "1/2-1/2"]
[WhiteElo "3054"]
[BlackElo "2609"]
[TimeControl "180+1"]
[EndTime "8:55:41 PDT"]
[Termination "Game drawn by stalemate"]

1. d4 {[%clk 0:03:00.9]} 1... Nf6 {[%clk 0:02:59.5]} 2. c4 {[%clk 0:03:00.7]}
2... g6 {[%clk 0:03:00.1]} 3. Nc3 {[%clk 0:03:01.4]} 3... Bg7 {[%clk 0:03:01]}
4. e4 {[%clk 0:03:02]} 4... O-O {[%clk 0:03:01.5]} 5. Nf3 {[%clk 0:03:02.8]}
5... d6 {[%clk 0:03:02.1]} 6. Be2 {[%clk 0:03:03.5]} 6... Bg4 {[%clk 0:03:02.7]}
7. Be3 {[%clk 0:03:03.9]} 7... Nbd7 {[%clk 0:03:02.4]} 8. O-O {[%clk 0:02:59.8]}
8... e5 {[%clk 0:03:03]} 9. dxe5 {[%clk 0:02:56.8]} 9... dxe5 {[%clk 0:02:59.8]}
10. Qc2 {[%clk 0:02:52.9]} 10... Bxf3 {[%clk 0:02:59.2]} 11. Bxf3 {[%clk
0:02:53.1]} 11... c6 {[%clk 0:02:59.8]} 12. Rfd1 {[%clk 0:02:52]} 12... Qe7
{[%clk 0:03:00.1]} 13. a3 {[%clk 0:02:52]} 13... a5 {[%clk 0:02:55.2]} 14. Na4
{[%clk 0:02:46.8]} 14... Rfd8 {[%clk 0:02:54]} 15. c5 {[%clk 0:02:46.4]} 15...
Nf8 {[%clk 0:02:44.4]} 16. Nb6 {[%clk 0:02:46.6]} 16... Rab8 {[%clk 0:02:42.5]}
17. Nc4 {[%clk 0:02:46.9]} 17... Ne6 {[%clk 0:02:31.9]} 18. Nxe5 {[%clk
0:02:42.9]} 18... Ne8 {[%clk 0:01:50.2]} 19. Nc4 {[%clk 0:02:34.6]} 19... Nxc5
{[%clk 0:01:48.8]} 20. Nxa5 {[%clk 0:02:30.7]} 20... Ne6 {[%clk 0:01:45.7]} 21.
Nb3 {[%clk 0:02:30.7]} 21... Ng5 {[%clk 0:01:33.7]} 22. Nd2 {[%clk 0:02:17.6]}
22... Nd6 {[%clk 0:01:05.9]} 23. Bf4 {[%clk 0:01:50.4]} 23... Nxf3+ {[%clk
0:01:00.7]} 24. Nxf3 {[%clk 0:01:51.3]} 24... Rbc8 {[%clk 0:00:55.6]} 25. Bxd6
{[%clk 0:01:48.7]} 25... Rxd6 {[%clk 0:00:55.5]} 26. Rxd6 {[%clk 0:01:49.6]}
26... Qxd6 {[%clk 0:00:56]} 27. Rd1 {[%clk 0:01:50.4]} 27... Qe6 {[%clk
0:00:52.1]} 28. h4 {[%clk 0:01:22]} 28... h6 {[%clk 0:00:50.3]} 29. e5 {[%clk
0:01:08.3]} 29... Re8 {[%clk 0:00:43.2]} 30. Rd6 {[%clk 0:01:07.2]} 30... Qg4
{[%clk 0:00:43.1]} 31. Rd4 {[%clk 0:01:00.7]} 31... Qe6 {[%clk 0:00:37.3]} 32.
Re4 {[%clk 0:00:57.9]} 32... Qd5 {[%clk 0:00:37.5]} 33. Qe2 {[%clk 0:00:51.9]}
33... Re6 {[%clk 0:00:32.4]} 34. h5 {[%clk 0:00:49]} 34... g5 {[%clk 0:00:32.3]}
35. Rd4 {[%clk 0:00:49.5]} 35... Qa2 {[%clk 0:00:31.6]} 36. Rd8+ {[%clk
0:00:49.5]} 36... Bf8 {[%clk 0:00:31.1]} 37. Nd4 {[%clk 0:00:42.9]} 37... Re7
{[%clk 0:00:23.1]} 38. Kh2 {[%clk 0:00:37.5]} 38... Qb1 {[%clk 0:00:16]} 39. Qg4
{[%clk 0:00:33.3]} 39... Qe1 {[%clk 0:00:14]} 40. Qc8 {[%clk 0:00:26.5]} 40...
Qxe5+ {[%clk 0:00:13.3]} 41. g3 {[%clk 0:00:27.1]} 41... Kh7 {[%clk 0:00:09.3]}
42. Qf5+ {[%clk 0:00:16.2]} 42... Kg7 {[%clk 0:00:07.7]} 43. Qd3 {[%clk
0:00:14.5]} 43... Re8 {[%clk 0:00:05.8]} 44. Nf5+ {[%clk 0:00:14.6]} 44... Kf6
{[%clk 0:00:06.3]} 45. Ne3 {[%clk 0:00:10]} 45... Rxd8 {[%clk 0:00:05.6]} 46.
Qxd8+ {[%clk 0:00:10.9]} 46... Be7 {[%clk 0:00:06.1]} 47. Ng4+ {[%clk
0:00:09.5]} 47... Kf5 {[%clk 0:00:03.4]} 48. Qd7+ {[%clk 0:00:06.9]} 48... Qe6
{[%clk 0:00:04.3]} 49. Nxh6+ {[%clk 0:00:07.3]} 49... Ke4 {[%clk 0:00:03.3]} 50.
Qxe6+ {[%clk 0:00:05.8]} 50... fxe6 {[%clk 0:00:04.2]} 51. Kg2 {[%clk
0:00:06.5]} 51... Bf6 {[%clk 0:00:03.7]} 52. b3 {[%clk 0:00:06.3]} 52... Bb2
{[%clk 0:00:04.6]} 53. a4 {[%clk 0:00:06.7]} 53... Kd3 {[%clk 0:00:02.6]} 54.
Kf3 {[%clk 0:00:06.1]} 54... Kc2 {[%clk 0:00:02.7]} 55. Nf7 {[%clk 0:00:04.6]}
55... Kxb3 {[%clk 0:00:02.9]} 56. Ke4 {[%clk 0:00:05]} 56... Bf6 {[%clk
0:00:03.4]} 57. h6 {[%clk 0:00:03.9]} 57... c5 {[%clk 0:00:03.9]} 58. h7 {[%clk
0:00:03.7]} 58... c4 {[%clk 0:00:04.3]} 59. Nxg5 {[%clk 0:00:04.4]} 59... c3
{[%clk 0:00:04.2]} 60. Nf3 {[%clk 0:00:04]} 60... c2 {[%clk 0:00:04.3]} 61. Nd2+
{[%clk 0:00:04.6]} 61... Kb2 {[%clk 0:00:04.4]} 62. Nc4+ {[%clk 0:00:05.2]}
62... Kb1 {[%clk 0:00:04.7]} 63. Na3+ {[%clk 0:00:05.7]} 63... Kb2 {[%clk
0:00:05.1]} 64. Nxc2 {[%clk 0:00:06.6]} 64... Kxc2 {[%clk 0:00:06]} 65. f4
{[%clk 0:00:07.2]} 65... Kb3 {[%clk 0:00:06.6]} 66. g4 {[%clk 0:00:07.8]} 66...
Kxa4 {[%clk 0:00:07.2]} 67. g5 {[%clk 0:00:07.9]} 67... Bh8 {[%clk 0:00:08.1]}
68. f5 {[%clk 0:00:06.4]} 68... exf5+ {[%clk 0:00:08.1]} 69. Kxf5 {[%clk
0:00:07.3]} 69... b5 {[%clk 0:00:08.2]} 70. Ke6 {[%clk 0:00:07.8]} 70... b4
{[%clk 0:00:08]} 71. Kf7 {[%clk 0:00:08.7]} 71... b3 {[%clk 0:00:08]} 72. Kg8
{[%clk 0:00:07.8]} 72... b2 {[%clk 0:00:08.4]} 73. Kxh8 {[%clk 0:00:06.5]} 73...
b1=Q {[%clk 0:00:09]} 74. Kg7 {[%clk 0:00:07]} 74... Qb2+ {[%clk 0:00:08.6]} 75.
Kg8 {[%clk 0:00:06.4]} 75... Qb8+ {[%clk 0:00:08.4]} 76. Kg7 {[%clk 0:00:07.1]}
76... Qc7+ {[%clk 0:00:09.1]} 77. Kg8 {[%clk 0:00:07.8]} 77... Qd8+ {[%clk
0:00:08.6]} 78. Kg7 {[%clk 0:00:08.2]} 78... Qxg5+ {[%clk 0:00:08.7]} 79. Kh8
{[%clk 0:00:08.7]} 79... Qf6+ {[%clk 0:00:07.1]} 80. Kg8 {[%clk 0:00:09.3]}
80... Qg6+ {[%clk 0:00:06.9]} 81. Kh8 {[%clk 0:00:10]} 81... Qg5 {[%clk
0:00:06.2]} 1/2-1/2